[Event "CCT Chessable Masters Playin Match 2025"]
[Site "Online"]
[Date "2025.02.17"]
[Round "1.2"]
[White "Giri, Anish"]
[Black "Lu, Shanglei"]
[Result "1/2-1/2"]
[Annotator "TA"]
[ECO "A13"]
[WhiteElo "2728"]
[BlackElo "2618"]
[PlyCount "323"]
[EventDate "2025.02.13"]
[EventType "k.o."]
[EventCountry "NET"]
[SourceTitle "playchess.com"]
[Source "ChessBase"]
[SourceQuality "1"]
[TimeControl "600"]

{[%evp 64,323,30,0,28,43,31,7,40,41,43,39,37,49,61,57,141,154,121,21,21,22,35,12,42,40,36,9,11,7,8,0,10,0,0,0,0,0,0,0,0,0,0,0,0,0,0,0,8,8,19,19,52,19,19,19,19,19,19,19,46,2,5,8,90,90,90,90,93,97,97,90,90,97,99,70,90,90,97,90,99,99,99,99,99,99,98,90,90,90,82,0,0,0,0,0,0,0,0,0,0,0,0,0,0,0,0,0,0,0,0,0,0,0,0,0,0,0,0,0,0,0,0,0,0,0,0,0,0,0,0,0,0,0,0,0,0,0,0,0,0,0,0,0,0,-6,-8,-8,-8,-8,-5,-12,0,0,0,0,0,0,0,0,0,0,277,0,0,0,0,0,0,0,0,0,0,-8,0,0,0,-8,0,0,0,0,0,-11,0,0,0,0,0,0,0,0,0,0,0,0,0,0,0,0,0,0,0,0,0,0,0,0,0,0,0,0,0,0,0,0,0,0,0,0,0,0,0,0,0,-5057,-5057,-4718,-5006,-5065,0,0,0,0,0,0,0,0,0,0,0,0,0,0,0,0,0,0,0,0,0,0,0,0,0,0,0,0,0,0,0,0]} 1. c4 {[%emt 0:00:00]} Nf6 {[%emt 0:00:01]} 2. Nf3 {[%emt 0:00:02]} e6 {[%emt 0:00:01]} 3. g3 {[%emt 0:00:00]} d5 {[%emt 0:00:01]} 4. Bg2 {[%emt 0:00:01]} dxc4 {[%emt 0:00:02]} 5. Qa4+ {[%emt 0:00:01]} Bd7 {[%emt 0:00:01]} 6. Qxc4 {[%emt 0:00:01]} c5 {[%emt 0:00:00]} 7. Ne5 {[%emt 0:00:02]} Qc8 {[%emt 0:00:01]} 8. Qd3 {[%emt 0:00:07]} Nc6 {[%emt 0:00:05]} 9. Nxd7 {[%emt 0:00:02]} Nxd7 {[%emt 0:00:00]} 10. O-O {[%emt 0:00:11]} Be7 {[%emt 0:00:02]} 11. Nc3 {[%emt 0:00:02]} O-O {[%emt 0:00:03]} 12. b3 {[%emt 0:00:07]} Rd8 {[%emt 0:00:03]} 13. Bb2 {[%emt 0:00:11]} Nf6 {[%emt 0:00:07]} 14. Qc2 {[%emt 0:00:03]} Nd4 {[%emt 0:00:01]} 15. Qd1 {[%emt 0:00:02]} Qd7 {[%emt 0:00:02]} 16. Rc1 {[%emt 0:00:11]} Rac8 {[%emt 0:00:01]} 17. d3 {[%emt 0:00:10]} b6 {[%emt 0:00:02]} 18. Qd2 {[%emt 0:00:09]} h6 {[%emt 0:00:10]} 19. Rfd1 {[%emt 0:00:01]} Nc6 {[%emt 0:00:59]} 20. Ne4 {[%emt 0:00:19]} Nd5 {[%emt 0:00:20]} 21. Ba1 {[%emt 0:00:31]} Nd4 {[%emt 0:00:19]} 22. e3 {[%emt 0:00:04]} Nc6 {[%emt 0:00:06]} 23. Qb2 {[%emt 0:00:11]} Bf8 {[%emt 0:00:05]} 24. a3 {[%emt 0:00:01]} Qe7 {[%emt 0:00:38]} 25. h4 {[%emt 0:00:12]} Rc7 {[%emt 0:00:03]} 26. Nd2 {[%emt 0:00:07]} Nf6 {[%emt 0:00:07]} 27. Nf3 {[%emt 0:00:07]} Rdc8 {[%emt 0:00:42]} 28. Rc2 {[%emt 0:00:12]} Rd8 {[%emt 0:00:13]} 29. Ne1 {[%emt 0:00:09]} Nd5 {[%emt 0:00:08]} 30. Rdc1 {[%emt 0:00:06]} Qd7 {[%emt 0:00:07]} 31. Nf3 {[%emt 0:00:06]} Rdc8 {[%emt 0:00:07]} 32. Rd2 {[%emt 0:00:12]} Qe7 {[%emt 0:00:03]} 33. Rdc2 {[%emt 0:00:19]} Qd7 {[%emt 0:00:01]} 34. Bf1 {[%emt 0:00:00]} Qe7 {[%emt 0:00:29]} 35. d4 {[%emt 0:00:21]} Nb8 {[%emt 0:00:40]} (35... cxd4 {keeps more tension.} 36. Ba6 Ne5 37. Nxd4 Nf3+) 36. dxc5 {[%emt 0:00:15]} Rxc5 {[%emt 0:00:01]} 37. b4 {[%emt 0:00:11]} Rxc2 {[%emt 0:00:02]} 38. Rxc2 {[%emt 0:00:00]} Rxc2 {[%emt 0:00:03]} 39. Qxc2 {[%emt 0:00:00]} a5 {[%emt 0:00:06]} ({Black should try} 39... Qb7 $14) 40. Qc8 $1 $16 {[%emt 0:00:18]} Nd7 {[%emt 0:00:20]} 41. Bb5 {[%emt 0:00:03]} (41. e4 $16 N5f6 42. e5) 41... N7f6 $11 {[%emt 0:00:08]} 42. bxa5 {[%emt 0:00:22]} bxa5 {[%emt 0:00:37]} 43. a4 {[%emt 0:00:01]} Qc7 {[%emt 0:00:06]} 44. Qxc7 {[%emt 0:00:04]} Nxc7 {[%emt 0:00:01]} 45. Bc4 {[%emt 0:00:02]} Bb4 {[%emt 0:00:02]} 46. Nd4 {[%emt 0:00:10]} Ne4 {[%emt 0:00:03]} 47. Nb3 {[%emt 0:00:50]} Bc3 {[%emt 0:00:07]} (47... Be1 48. f3 Nxg3 49. Be5 $14) 48. Bd3 {[%emt 0:00:10]} Bxa1 $1 {[%emt 0:00:06]} 49. Bxe4 {[%emt 0:00:00]} Bc3 $1 {[%emt 0:00:01]} 50. Kf1 {[%emt 0:00:01]} Bb4 {[%emt 0:00:03]} 51. Ke2 {[%emt 0:00:04]} Na6 {[%emt 0:00:01]} 52. Bc2 {[%emt 0:00:00]} Nc5 {[%emt 0:00:01]} 53. Nd4 {[%emt 0:00:01]} f6 {[%emt 0:00:05]} 54. h5 {[%emt 0:00:01]} Kf7 {[%emt 0:00:01]} 55. f4 {[%emt 0:00:01]} e5 {[%emt 0:00:02]} 56. Nf5 {[%emt 0:00:01]} exf4 {[%emt 0:00:04]} 57. gxf4 {[%emt 0:00:01]} Nd7 {[%emt 0:00:03]} 58. Bb3+ {[%emt 0:00:01]} Kf8 {[%emt 0:00:01]} 59. Kf3 {[%emt 0:00:01]} Nc5 {[%emt 0:00:01]} 60. Bc2 {[%emt 0:00:00]} Nb7 {[%emt 0:00:00]} 61. Nd4 {[%emt 0:00:01]} Nd6 {[%emt 0:00:01]} 62. Ne6+ {[%emt 0:00:01]} Kf7 {[%emt 0:00:01]} 63. Bb3 {[%emt 0:00:00]} g5 {[%emt 0:00:06]} (63... f5 $11) 64. Nxg5+ $16 {[%emt 0:00:03]} Ke7 {[%emt 0:00:04]} 65. Ne6 {[%emt 0:00:01]} f5 {[%emt 0:00:04]} 66. Nd4 {[%emt 0:00:04]} Kf6 {[%emt 0:00:01]} 67. Bc2 {[%emt 0:00:00]} Bc3 {[%emt 0:00:02]} 68. Nb3 {[%emt 0:00:06]} Bb4 {[%emt 0:00:00]} 69. Bd3 {[%emt 0:00:01]} Nb7 {[%emt 0:00:01]} 70. Nd4 {[%emt 0:00:03]} Nd6 {[%emt 0:00:01]} 71. Ke2 {[%emt 0:00:00]} Bc3 {[%emt 0:00:01]} 72. Nb3 {[%emt 0:00:02]} Nb7 {[%emt 0:00:03]} 73. Bc2 {[%emt 0:00:01]} Bb4 {[%emt 0:00:01]} 74. Nd4 {[%emt 0:00:01]} Nd6 {[%emt 0:00:00]} 75. Bb3 {[%emt 0:00:02]} Bc5 {[%emt 0:00:01]} 76. Nf3 {[%emt 0:00:02]} Ne4 {[%emt 0:00:01]} 77. Nh4 {[%emt 0:00:06]} ({White should play} 77. Ne5 $1 $16) 77... Ng3+ $11 {[%emt 0:00:01]} 78. Kf3 {[%emt 0:00:01]} Nxh5 {[%emt 0:00:00]} 79. Bc2 {[%emt 0:00:01]} Ng7 {[%emt 0:00:01]} 80. Bd3 {[%emt 0:00:00]} Bb6 {[%emt 0:00:01]} 81. Ke2 {[%emt 0:00:00]} Bc5 {[%emt 0:00:01]} 82. Bb1 {[%emt 0:00:01]} Bb6 {[%emt 0:00:00]} 83. Bc2 {[%emt 0:00:00]} Bc5 {[%emt 0:00:01]} 84. Kf3 {[%emt 0:00:01]} Bb6 {[%emt 0:00:00]} 85. Ng2 {[%emt 0:00:03]} Ne6 {[%emt 0:00:02]} 86. Ne1 {[%emt 0:00:02]} Nc5 {[%emt 0:00:02]} 87. Ng2 {[%emt 0:00:02]} Ne6 {[%emt 0:00:00]} 88. Ke2 {[%emt 0:00:00]} Ba7 {[%emt 0:00:02]} 89. Nh4 {[%emt 0:00:01]} Ng7 {[%emt 0:00:01]} 90. Bb3 {[%emt 0:00:01]} Bb6 {[%emt 0:00:00]} 91. Kd3 {[%emt 0:00:01]} Bc5 {[%emt 0:00:01]} 92. Bd1 {[%emt 0:00:01]} Bb6 {[%emt 0:00:01]} 93. Bf3 {[%emt 0:00:01]} Ne6 {[%emt 0:00:00]} 94. Bd1 {[%emt 0:00:02]} Nc5+ {[%emt 0:00:01]} 95. Ke2 {[%emt 0:00:01]} Ne4 {[%emt 0:00:01]} 96. Bc2 {[%emt 0:00:01]} Nd6 {[%emt 0:00:01]} 97. Bd3 {[%emt 0:00:01]} Bc5 {[%emt 0:00:00]} 98. Kf3 {[%emt 0:00:00]} Bb6 {[%emt 0:00:01]} 99. Ng2 {[%emt 0:00:02]} Nb7 {[%emt 0:00:02]} 100. Bc2 {[%emt 0:00:01]} Nd6 {[%emt 0:00:01]} 101. Ke2 {[%emt 0:00:01]} Bc5 {[%emt 0:00:00]} 102. Kd3 {[%emt 0:00:01]} Bb6 {[%emt 0:00:03]} 103. Bd1 {[%emt 0:00:01]} Ne4 {[%emt 0:00:01]} 104. Kc4 {[%emt 0:00:04]} Ke6 {[%emt 0:00:04]} 105. Be2 {[%emt 0:00:04]} Nd6+ {[%emt 0:00:01]} 106. Kc3 {[%emt 0:00:04]} Bd8 {[%emt 0:00:01]} 107. Bf3 {[%emt 0:00:02]} Bf6+ {[%emt 0:00:01]} 108. Kd3 {[%emt 0:00:00]} Kd7 {[%emt 0:00:02]} 109. Ne1 {[%emt 0:00:01]} Kc7 {[%emt 0:00:01]} 110. Nc2 {[%emt 0:00:03]} Kb6 {[%emt 0:00:01]} 111. Nd4 {[%emt 0:00:02]} Kc5 {[%emt 0:00:03]} 112. Nc6 {[%emt 0:00:00]} Nb7 $2 {[%emt 0:00:02][%mdl 8192] [#]} (112... Nc4 $11 {and Black is okay.}) 113. Ne5 $2 {[%emt 0:00:08]} ({White has to play} 113. Nb8 $1 $18 {[%cal Rb8d7]}) 113... Bxe5 $11 {[%emt 0:00:01]} 114. Bxb7 {[%emt 0:00:02]} Bc7 {[%emt 0:00:02]} 115. Bc8 {[%emt 0:00:01]} Kb4 {[%emt 0:00:01]} 116. Bxf5 {[%emt 0:00:02]} Kxa4 {[%emt 0:00:00]} 117. Ke4 {[%emt 0:00:03]} Kb4 {[%emt 0:00:02]} 118. Kf3 {[%emt 0:00:00]} Kc5 {[%emt 0:00:01]} 119. e4 {[%emt 0:00:01]} a4 {[%emt 0:00:02]} 120. Ke3 {[%emt 0:00:06]} a3 {[%emt 0:00:01]} 121. Be6 {[%emt 0:00:00]} Kd6 {[%emt 0:00:01]} 122. Ba2 {[%emt 0:00:01]} h5 {[%emt 0:00:12]} 123. e5+ {[%emt 0:00:01]} Ke7 {[%emt 0:00:01]} 124. Kf3 {[%emt 0:00:00]} Kf8 {[%emt 0:00:02]} 125. Kg3 {[%emt 0:00:03]} Kg7 {[%emt 0:00:01]} 126. Kh4 {[%emt 0:00:01]} Kg6 {[%emt 0:00:01]} 127. Bb1+ {[%emt 0:00:01]} Kh6 {[%emt 0:00:01]} 128. Kg3 {[%emt 0:00:01]} Kg7 {[%emt 0:00:01]} 129. Kh3 {[%emt 0:00:01]} Kh6 {[%emt 0:00:00]} 130. Kg2 {[%emt 0:00:01]} Bb8 {[%emt 0:00:01]} 131. Kg3 {[%emt 0:00:00]} Kg7 {[%emt 0:00:00]} 132. Kf3 {[%emt 0:00:01]} Kh6 {[%emt 0:00:01]} 133. Ba2 {[%emt 0:00:02]} Bc7 {[%emt 0:00:02]} 134. Ke4 {[%emt 0:00:03]} h4 {[%emt 0:00:00]} 135. Kf3 {[%emt 0:00:01]} Kh5 {[%emt 0:00:01]} 136. Bf7+ {[%emt 0:00:01]} Kh6 {[%emt 0:00:01]} 137. Kg4 {[%emt 0:00:00]} Kg7 {[%emt 0:00:01]} 138. Ba2 {[%emt 0:00:01]} Kg6 {[%emt 0:00:02]} 139. Bb1+ {[%emt 0:00:02]} Kf7 {[%emt 0:00:01]} 140. Ba2+ {[%emt 0:00:02]} Kg6 $1 {[%emt 0:00:00]} 141. f5+ {[%emt 0:00:02]} Kg7 {[%emt 0:00:03]} 142. f6+ {[%emt 0:00:03]} (142. Kxh4 Bxe5 143. Kg5 Bc3 $17) (142. Kxh4 {simplifies} Bxe5 143. Kg5 Bf6+ 144. Kf4) 142... Kg6 {[%emt 0:00:00]} 143. Bb1+ {[%emt 0:00:00]} (143. f7 $5 Kg7 $8 144. Kxh4 $16) 143... Kf7 {[%emt 0:00:01]} 144. Kf5 $2 {[%emt 0:00:00][%mdl 8192] [#]} ({But not} 144. Kxh4 Bxe5 145. Kg4 Ke6 $17 (145... Bxf6 146. Ba2+ Ke8 147. Kf3 $17)) (144. Ba2+ $11 Ke8 145. e6 (145. Kxh4 Bxe5 146. Kg5 Bd6 $15)) 144... Bxe5 $1 $19 {[%emt 0:00:01]} 145. Ba2+ {[%emt 0:00:01]} Kf8 {[%emt 0:00:00]} 146. Kg4 {[%emt 0:00:04]} Bg3 $2 {[%emt 0:00:01]} (146... Bxf6 $19 147. Kh3 Ke7) 147. Kh3 {[%emt 0:00:00]} Be5 {[%emt 0:00:01]} 148. f7 {[%emt 0:00:01]} Bf6 {[%emt 0:00:00]} 149. Bb3 {[%emt 0:00:00]} Be7 {[%emt 0:00:00]} 150. Bc4 {[%emt 0:00:00]} Bd8 {[%emt 0:00:00]} 151. Bd5 {[%emt 0:00:01]} Be7 {[%emt 0:00:01]} 152. Be6 {[%emt 0:00:00]} Bd8 {[%emt 0:00:00]} 153. Ba2 {[%emt 0:00:00]} Be7 {[%emt 0:00:00]} 154. Kg4 {[%emt 0:00:01]} Bd8 {[%emt 0:00:00]} 155. Kf4 {[%emt 0:00:00]} Be7 {[%emt 0:00:00]} 156. Kf3 {[%emt 0:00:00]} Bd8 {[%emt 0:00:00]} 157. Kg4 {[%emt 0:00:01]} Be7 {[%emt 0:00:00]} 158. Kh3 {[%emt 0:00:00]} Bd8 {[%emt 0:00:00]} 159. Kg2 {[%emt 0:00:00]} Be7 {[%emt 0:00:00]} 160. Kh3 {[%emt 0:00:01]} Bd8 {[%emt 0:00:00]} 161. Kg2 {[%emt 0:00:00]} Be7 {[%emt 0:00:01]} 162. Kh3 {[%emt 0:00:05]} 1/2-1/2

[Event "CCT Chessable Masters Playin Match 2025"]
[Site "Online"]
[Date "2025.02.17"]
[Round "1.2"]
[White "Esipenko, Andrey"]
[Black "Andreikin, Dmitry"]
[Result "1-0"]
[Annotator "TA"]
[ECO "D35"]
[WhiteElo "2695"]
[BlackElo "2695"]
[PlyCount "117"]
[EventDate "2025.02.13"]
[EventType "k.o."]
[EventCountry "NET"]
[SourceTitle "playchess.com"]
[Source "ChessBase"]
[SourceQuality "1"]
[TimeControl "600"]

{[%evp 18,117,27,25,28,25,31,17,28,19,35,0,0,0,6,0,0,0,106,103,189,177,180,135,136,132,174,151,155,152,154,152,317,313,384,379,363,334,390,390,413,412,374,389,364,375,374,376,382,362,354,203,220,234,212,189,350,356,339,340,339,324,454,381,531,526,525,521,488,458,642,652,642,642,585,540,664,658,858,870,865,808,1064,818,29982,12825,29989,29990,29990,29991,29991,29991,29991,29989,29989,29990,29990,29991,29991,29992,29992,29993]} 1. d4 {[%emt 0:00:00]} Nf6 {[%emt 0:00:01]} 2. c4 {[%emt 0:00:02]} e6 {[%emt 0:00:01]} 3. Nc3 {[%emt 0:00:01]} d5 {[%emt 0:00:01]} 4. cxd5 {[%emt 0:00:02]} exd5 {[%emt 0:00:01]} 5. Bg5 {[%emt 0:00:02]} c6 {[%emt 0:00:01]} 6. e3 {[%emt 0:00:01]} Bf5 {[%emt 0:00:00]} 7. Qf3 {[%emt 0:00:15]} Bg6 {[%emt 0:00:02]} 8. Bxf6 {[%emt 0:00:00]} Qxf6 {[%emt 0:00:00]} 9. Qxf6 {[%emt 0:00:01]} gxf6 {[%emt 0:00:00]} 10. h4 {[%emt 0:00:03][%cal Bh2h4,Bh4h5][%mdl 32]} Nd7 {[%emt 0:00:05] D35: Queen's Gambit Declined: Exchange Variation.} 11. Nge2 {[%emt 0:00:08]} Bd6 {[%emt 0:00:12]} 12. h5 $5 {[%emt 0:00:03][%mdl 4] A promising side line.} Bf5 {[%emt 0:00:01] The position is equal.} 13. h6 {[%emt 0:00:01]} Rg8 {[%emt 0:00:07]} 14. f3 {[%emt 0:00:15]} O-O-O {[%emt 0:00:41]} 15. Kf2 {[%emt 0:00:01]} Rde8 $146 {[%emt 0:00:03]} (15... Kb8 16. Nf4 Bg6 17. Rd1 Nb6 18. g4 Nc8 19. Nh5 Be7 20. Ng3 Bb4 21. f4 Bxc3 22. bxc3 {1-0 Nett,P (2035)-Irons,R (1906) W-ch WS/H/875 email 2021}) 16. g3 {[%emt 0:00:36]} Nb6 {[%emt 0:00:07]} 17. Nf4 {[%emt 0:00:06]} Kb8 {[%emt 0:00:18]} (17... Bg6 $11 {remains equal.}) 18. Nh5 $16 {[%emt 0:00:15][%cal Og3g4] Excellent horsemanship.} Re6 {[%emt 0:01:37] [#]} (18... Rd8 $16) 19. Ng7 $1 $18 {[%emt 0:00:20]} Bg6 {[%emt 0:00:01]} 20. Nxe6 {[%emt 0:01:10]} fxe6 {[%emt 0:00:00]} 21. b3 {[%emt 0:00:05]} Nd7 {[%emt 0:00:14]} 22. Ne2 {[%emt 0:00:08]} e5 {[%emt 0:00:25]} 23. Rd1 {[%emt 0:00:52]} Kc7 {[%emt 0:00:02]} 24. Bh3 {[%emt 0:00:06]} e4 $2 {[%emt 0:00:23] This costs Black the game.} (24... a5 $16 25. Bg4 Rd8) 25. Nf4 {[%emt 0:00:06]} f5 {[%emt 0:00:16][%cal Bf6f5,Bf5f4,Bf4f3][%mdl 32]} 26. Nxg6 {[%emt 0:00:26]} hxg6 {[%emt 0:00:04]} 27. fxe4 {[%emt 0:00:02]} dxe4 {[%emt 0:00:14]} 28. g4 {[%emt 0:00:01]} f4 {[%emt 0:00:18]} 29. g5 {[%emt 0:00:02]} Nf8 {[%emt 0:00:02]} 30. Bg2 {[%emt 0:00:38]} f3 {[%emt 0:00:08]} 31. Bf1 {[%emt 0:00:02]} Nh7 {[%emt 0:00:02]} 32. Bc4 {[%emt 0:00:02]} Rf8 {[%emt 0:00:03]} 33. Rdg1 {[%emt 0:00:06]} b5 {[%emt 0:00:21]} 34. Bf1 {[%emt 0:00:01]} (34. Be6 $142) 34... Be7 {[%emt 0:00:13]} 35. Rh4 {[%emt 0:00:02]} Nxg5 {[%emt 0:00:34]} 36. Rhg4 {[%emt 0:00:03]} Rf5 {[%emt 0:00:08] [#]} (36... Rh8 37. Rxg5 Rxh6) 37. h7 $1 {[%emt 0:00:35][%mdl 512]} Nxh7 {[%emt 0:00:04]} 38. Rxe4 {[%emt 0:00:01]} Bg5 {[%emt 0:00:20]} 39. Bd3 {[%emt 0:00:03]} Bf6 {[%emt 0:00:38]} (39... Rf8 {was necessary.} 40. Rg3 c5 41. Rxf3 (41. Bxb5 Nf6 $16) (41. dxc5 Rd8 $18) 41... cxd4 42. Rxd4 Nf6 43. Bxg6 (43. Bxb5 Rh8 $18) 43... Rg8) 40. Reg4 {[%emt 0:00:14]} Rh5 {[%emt 0:00:09]} 41. Bxg6 {[%emt 0:00:01]} Rh2+ {[%emt 0:00:01]} 42. Kxf3 {[%emt 0:00:00]} Nf8 {[%emt 0:00:02]} 43. Be4 {[%emt 0:00:06]} Rxa2 {[%emt 0:00:04]} (43... Rh3+ $142 44. Ke2 Rh2+ 45. R4g2 Rxg2+ 46. Bxg2 (46. Rxg2 Kb6 $18) 46... Be7) 44. Rc1 {[%emt 0:00:15]} Ra6 {[%emt 0:00:01]} 45. Rg8 {[%emt 0:00:10]} Nd7 {[%emt 0:00:02]} 46. Re8 {[%emt 0:00:05]} Kd6 {[%emt 0:00:05]} 47. Rc8 {[%emt 0:00:03]} c5 {[%emt 0:00:01]} 48. dxc5+ {[%emt 0:00:02]} Ke7 {[%emt 0:00:01]} 49. c6 {[%emt 0:00:18]} Ne5+ {[%emt 0:00:01]} 50. Kf4 {[%emt 0:00:01] Strongly threatening c7.} Ra2 {[%emt 0:00:02]} 51. c7 {[%emt 0:00:01] Intending Rg8 and mate.} Nf7 {[%emt 0:00:19] [#]} 52. Re8+ $3 {[%emt 0:00:03][%mdl 512] White mates.} Kxe8 {[%emt 0:00:01]} 53. c8=Q+ {[%emt 0:00:01]} Bd8 {[%emt 0:00:00]} 54. Qe6+ {[%emt 0:00:05]} Kf8 {[%emt 0:00:01]} 55. Rc8 {[%emt 0:00:02]} Rf2+ {[%emt 0:00:01]} 56. Kg3 {[%emt 0:00:02]} Rf1 {[%emt 0:00:02]} 57. Bg6 {[%emt 0:00:04]} Rg1+ {[%emt 0:00:04]} 58. Kf2 {[%emt 0:00:02][%csl Gg6][%cal Re6f7]} Rxg6 {[%emt 0:00:03]} 59. Qxg6 {[%emt 0:00:02] Weighted Error Value: White=0.10 (very precise) /Black=0.62  Loses game:     	---       	Black=1      Mistake:       	White=1     	Black=5      Inaccurate:     	White=1     	Black=3      OK:         	White=20    	Black=16     Best:        	White=2     	Black=1      Strong:       	White=1     	---} 1-0

[Event "CCT Chessable Masters Playin Match 2025"]
[Site "Online"]
[Date "2025.02.17"]
[Round "1.2"]
[White "Sevian, Samuel"]
[Black "Vachier-Lagrave, Maxime"]
[Result "1/2-1/2"]
[Annotator "TA"]
[ECO "A20"]
[WhiteElo "2692"]
[BlackElo "2729"]
[PlyCount "60"]
[EventDate "2025.02.13"]
[EventType "k.o."]
[EventCountry "NET"]
[SourceTitle "playchess.com"]
[Source "ChessBase"]
[SourceQuality "1"]
[TimeControl "600"]

{[%evp 9,60,14,14,23,20,23,18,18,36,24,26,28,19,29,38,18,30,12,16,0,0,0,24,0,0,0,0,-39,0,-10,23,0,0,17,23,8,83,33,34,-24,-14,-13,-3,-54,0,0,-2,-17,0,0,0,-25,0]} 1. c4 {[%emt 0:00:00]} e5 {[%emt 0:00:01]} 2. g3 {[%emt 0:00:04]} d5 {[%emt 0:00:01]} 3. cxd5 {[%emt 0:00:02]} Qxd5 {[%emt 0:00:00]} 4. Nf3 {[%emt 0:00:03]} Nc6 {[%emt 0:00:00]} 5. Nc3 {[%emt 0:00:02]} Qd8 {[%emt 0:00:02]} 6. Bg2 {[%emt 0:00:01] A20: English Opening: 1...e5.} Nf6 {[%emt 0:00:01]} 7. d3 {[%emt 0:00:02]} h6 {[%emt 0:00:05]} 8. O-O {[%emt 0:00:01] The position is equal.} Bd6 {[%emt 0:00:03]} 9. b3 {[%emt 0:00:20]} O-O {[%emt 0:00:02]} 10. Bb2 {[%emt 0:00:01]} Re8 {[%emt 0:00:04]} 11. Rc1 {[%emt 0:00:02]} Bf5 {[%emt 0:00:09]} 12. Nd2 {[%emt 0:00:02]} Qd7 {[%emt 0:00:02]} 13. a3 $146 {[%emt 0:00:58]} (13. Re1 Bh3 14. Bh1 Rab8 15. Nc4 Ne7 16. Ne4 Nxe4 17. dxe4 Nc6 18. Nxd6 cxd6 19. Qd2 {1-0 Niemann,H (2703)-Vachier Lagrave,M (2718) Chess.com SpeedChess blitz 2024 (1.10)}) 13... Bh3 {[%emt 0:00:06]} 14. b4 {[%emt 0:00:02]} Bxg2 {[%emt 0:00:02]} 15. Kxg2 {[%emt 0:00:00]} Nd4 {[%emt 0:00:05]} 16. e3 {[%emt 0:00:11]} Ne6 {[%emt 0:00:06]} 17. Nce4 {[%emt 0:00:36]} Nxe4 {[%emt 0:00:02]} 18. Nxe4 {[%emt 0:00:57]} Rad8 {[%emt 0:00:01]} 19. Qb3 {[%emt 0:00:02]} f5 {[%emt 0:01:00][%cal Bf7f5,Bf5f4][%mdl 32]} 20. Nd2 {[%emt 0:00:17]} Kh7 {[%emt 0:00:10]} 21. Nc4 {[%emt 0:00:36]} f4 {[%emt 0:00:52]} 22. h4 {[%emt 0:00:41] Dodges Ng5} (22. Bxe5 $2 Ng5 23. Kh1 (23. Bxf4 Qh3+ 24. Kh1 Nf3 25. g4 Bxf4 26. exf4 Qxh2#) (23. gxf4 $2 Qg4+ 24. Kh1 Qf3+ 25. Kg1 Nh3#) 23... Qh3 $19 (23... Bxe5 24. Nxe5 Rxe5 25. exf4 $17) (23... Rxe5 24. exf4 Qc6+ 25. f3 $16)) 22... Qf7 {[%emt 0:00:29] [#]} (22... Nf8 $11) 23. Qd1 {[%emt 0:00:09]} ({But not} 23. Bxe5 b5 24. Nxd6 cxd6 $11) (23. Nxe5 Bxe5 24. Bxe5 fxe3 $15) (23. Qc2 $1 $16) 23... Qf5 $14 {[%emt 0:00:40]} 24. e4 {[%emt 0:00:22]} (24. Qf3 $14) 24... Qf6 $11 {[%emt 0:00:07]} 25. Qh5 {[%emt 0:00:22]} g6 {[%emt 0:01:03] Repels Qf5} 26. Qf3 {[%emt 0:00:57]} (26. Bxe5 $11 f3+ (26... Qxe5 27. Qxe5 Bxe5 28. Nxe5 $16) 27. Kh2 (27. Qxf3 $2 {loses.} Bxe5 28. Qe2 Bf4 $19)) 26... h5 {[%emt 0:00:06]} (26... c6 $15) 27. Na5 {[%emt 0:00:04]} Rb8 {[%emt 0:00:02]} 28. Nc4 {[%emt 0:00:19]} Rbd8 {[%emt 0:00:05]} 29. Na5 {[%emt 0:00:01]} Rb8 {[%emt 0:00:01]} 30. Nc4 {[%emt 0:00:01]} Rbd8 {[%emt 0:00:15] Weighted Error Value: White=0.14 (very precise) /Black=0.12 (very precise)   Mistake:       	White=3     	Black=2      Inaccurate:     	White=1     	Black=2      OK:         	White=11    	Black=13     Best:        	---       	Black=1} 1/2-1/2